[Event "ETCC Open 2023"]
[Site "Budva"]
[Date "2023.11.14"]
[Round "4.60"]
[White "Veleshnja, Zino"]
[Black "Kucuksari, Kaan"]
[Result "0-1"]
[ECO "A80"]
[WhiteElo "2269"]
[BlackElo "2474"]
[Annotator "ChessBase"]
[PlyCount "102"]
[EventDate "2023.11.10"]
[EventType "team-tourn"]
[EventCountry "MNE"]
[SourceTitle "playchess.com"]
[Source "ChessBase"]
[SourceQuality "1"]
[WhiteTeam "Albania"]
[BlackTeam "Sweden"]
[WhiteTeamCountry "ALB"]
[BlackTeamCountry "SWE"]
[TimeControl "40/5400+30:1800+30"]

1. d4 {[%emt 0:00:05]} f5 {[%emt 0:00:06]} 2. Nc3 {[%emt 0:00:08]} Nf6 {[%emt 0:00:08]} 3. Bg5 {[%emt 0:00:06]} d5 {[%emt 0:00:05]} 4. Bxf6 {[%emt 0:00:04]} exf6 {[%emt 0:00:06]} 5. e3 {[%emt 0:00:23]} Be6 {[%emt 0:00:07]} 6. Bd3 {[%emt 0:02:41]} Nc6 {[%emt 0:00:11]} 7. a3 {[%emt 0:01:30]} Qd7 {[%emt 0:00:40]} 8. Nge2 {[%emt 0:03:04]} g5 {[%emt 0:04:30]} 9. Qd2 {[%emt 0:09:07]} O-O-O {[%emt 0:03:29]} 10. O-O-O {[%emt 0:02:15]} Kb8 {[%emt 0:05:59]} 11. Na4 {[%emt 0:06:43]} b6 {[%emt 0:00:29]} 12. Bb5 {[%emt 0:00:42]} Qd6 {[%emt 0:09:07]} 13. Kb1 {[%emt 0:05:53]} Ne7 {[%emt 0:11:51]} 14. h4 {[%emt 0:08:56]} Nc8 {[%emt 0:07:25]} 15. Qc1 {[%emt 0:06:34]} Qe7 {[%emt 0:01:57]} 16. f4 {[%emt 0:09:48]} Nd6 {[%emt 0:03:47]} 17. Bd3 {[%emt 0:00:18]} gxf4 {[%emt 0:03:27]} 18. Nxf4 {[%emt 0:01:28]} Rg8 {[%emt 0:00:50]} 19. Nc3 {[%emt 0:04:47]} c6 {[%emt 0:02:42]} 20. Nce2 {[%emt 0:02:04]} Bh6 {[%emt 0:00:26]} 21. Rh3 {[%emt 0:02:04]} Bf7 {[%emt 0:07:41]} 22. Rf1 {[%emt 0:03:42]} Rde8 {[%emt 0:00:19]} 23. Qe1 {[%emt 0:07:04]} Kb7 {[%emt 0:01:40]} 24. Qf2 {[%emt 0:01:21]} Kc7 {[%emt 0:16:20]} 25. Qf3 {[%emt 0:00:49]} a5 {[%emt 0:01:45]} 26. Qf2 {[%emt 0:01:34]} Kb8 {[%emt 0:01:12]} 27. Qe1 {[%emt 0:00:25]} Rg4 {[%emt 0:02:16]} 28. Qf2 {[%emt 0:03:47]} Ka7 {[%emt 0:01:39]} 29. Qf3 {[%emt 0:00:36]} Qd7 {[%emt 0:07:43]} 30. Qf2 {[%emt 0:01:39]} Reg8 {[%emt 0:03:34]} 31. Qf3 {[%emt 0:02:01]} Be8 {[%emt 0:00:31]} 32. Qf2 {[%emt 0:01:40]} Qe7 {[%emt 0:00:27]} 33. Qf3 {[%emt 0:03:05]} Bd7 {[%emt 0:00:12]} 34. Qf2 {[%emt 0:00:42]} Bc8 {[%emt 0:02:08]} 35. Ka2 {[%emt 0:05:39]} Qe8 {[%emt 0:02:13]} 36. b3 {[%emt 0:00:32]} Qe7 {[%emt 0:00:35]} 37. Kb2 {[%emt 0:00:37]} Bf8 {[%emt 0:00:36]} 38. a4 {[%emt 0:00:50]} Bh6 {[%emt 0:00:31]} 39. Qe1 {[%emt 0:01:52]} Bd7 {[%emt 0:00:22]} 40. Qf2 {[%emt 0:01:02]} Kb8 {[%emt 0:00:17]} 41. Qe1 {[%emt 0:30:38]} Re8 {[%emt 0:30:41]} 42. Qc3 {[%emt 0:00:00]} Reg8 {[%emt 0:00:00]} 43. Qe1 {[%emt 0:00:00]} Bc8 {[%emt 0:00:00]} 44. Qc3 {[%emt 0:00:00]} Bb7 {[%emt 0:00:00]} 45. Qe1 {[%emt 0:00:00]} Ka7 {[%emt 0:00:00]} 46. Qc3 {[%emt 0:00:00]} Bf8 {[%emt 0:00:00]} 47. Qe1 {[%emt 0:00:00]} Ne4 {[%emt 0:00:00]} 48. Bxe4 {[%emt 0:00:00]} fxe4 {[%emt 0:00:00]} 49. Rg3 {[%emt 0:00:00]} Rxg3 {[%emt 0:00:00]} 50. Nxg3 {[%emt 0:00:00]} Qa3+ {[%emt 0:00:00]} 51. Kb1 {[%emt 0:00:00]} Bb4 {[%emt 0:00:00]} 0-1

[Event "ETCC Open 2023"]
[Site "Budva"]
[Date "2023.11.14"]
[Round "4.61"]
[White "Georgiadis, Nico"]
[Black "Laurusas, Tomas"]
[Result "0-1"]
[ECO "D15"]
[WhiteElo "2556"]
[BlackElo "2566"]
[Annotator "ChessBase"]
[PlyCount "96"]
[EventDate "2023.11.10"]
[EventType "team-tourn"]
[EventCountry "MNE"]
[SourceTitle "playchess.com"]
[Source "ChessBase"]
[SourceQuality "1"]
[WhiteTeam "Switzerland"]
[BlackTeam "Lithuania"]
[WhiteTeamCountry "SUI"]
[BlackTeamCountry "LTU"]
[TimeControl "40/5400+30:1800+30"]

1. d4 {[%emt 0:00:04]} d5 {[%emt 0:00:21]} 2. c4 {[%emt 0:00:07]} c6 {[%emt 0:00:04]} 3. Nf3 {[%emt 0:00:08]} Nf6 {[%emt 0:00:07]} 4. Nc3 {[%emt 0:00:34]} a6 {[%emt 0:00:24]} 5. e3 {[%emt 0:00:21]} g6 {[%emt 0:00:21]} 6. a4 {[%emt 0:00:44]} a5 {[%emt 0:02:25]} 7. cxd5 {[%emt 0:00:16]} cxd5 {[%emt 0:00:20]} 8. Bb5+ {[%emt 0:01:01]} Nc6 {[%emt 0:00:36]} 9. Ne5 {[%emt 0:02:39]} Bd7 {[%emt 0:00:54]} 10. O-O {[%emt 0:07:03]} e6 {[%emt 0:05:12]} 11. Nxd7 {[%emt 0:12:27]} Qxd7 {[%emt 0:00:55]} 12. f3 {[%emt 0:03:57]} Bg7 {[%emt 0:15:18]} 13. e4 {[%emt 0:11:57]} O-O {[%emt 0:00:33]} 14. e5 {[%emt 0:00:30]} Ne8 {[%emt 0:00:05]} 15. Be3 {[%emt 0:00:35]} Nc7 {[%emt 0:03:47]} 16. Be2 {[%emt 0:02:14]} Qe7 {[%emt 0:01:50]} 17. Qb3 {[%emt 0:17:17]} Qb4 {[%emt 0:01:36]} 18. Qxb4 {[%emt 0:00:06]} Nxb4 {[%emt 0:00:14]} 19. Rac1 {[%emt 0:00:36]} Rfc8 {[%emt 0:01:53]} 20. f4 {[%emt 0:03:35]} f5 {[%emt 0:01:05]} 21. exf6 {[%emt 0:09:15]} Bxf6 {[%emt 0:02:31]} 22. g4 {[%emt 0:00:03]} Ne8 {[%emt 0:03:00]} 23. Nb5 {[%emt 0:13:26]} Rc6 {[%emt 0:01:05]} 24. f5 {[%emt 0:05:43]} exf5 {[%emt 0:11:45]} 25. gxf5 {[%emt 0:00:05]} Nc2 {[%emt 0:00:05]} 26. Bf2 {[%emt 0:03:27]} Bg5 {[%emt 0:00:31]} 27. Rcd1 {[%emt 0:01:34]} gxf5 {[%emt 0:00:28]} 28. Kh1 {[%emt 0:02:23]} Nf6 {[%emt 0:04:05]} 29. Bd3 {[%emt 0:01:17]} Ne4 {[%emt 0:00:38]} 30. Nc3 {[%emt 0:00:10]} Nb4 {[%emt 0:01:26]} 31. Bg3 {[%emt 0:00:29]} Rf8 {[%emt 0:02:11]} 32. Be5 {[%emt 0:00:05]} Be3 {[%emt 0:05:43]} 33. Bxe4 {[%emt 0:01:44]} fxe4 {[%emt 0:02:30]} 34. Rxf8+ {[%emt 0:00:05]} Kxf8 {[%emt 0:00:04]} 35. Rf1+ {[%emt 0:00:09]} Ke7 {[%emt 0:00:08]} 36. Rf5 {[%emt 0:00:52]} Rg6 {[%emt 0:01:16]} 37. Bg3 {[%emt 0:00:18]} Bxd4 {[%emt 0:00:14]} 38. Rh5 {[%emt 0:00:12]} Ke6 {[%emt 0:04:16]} 39. Nb5 {[%emt 0:00:54]} Bb6 {[%emt 0:01:14]} 40. Rxh7 {[%emt 0:00:21]} d4 {[%emt 0:05:58]} 41. Rxb7 {[%emt 0:03:54]} Nd5 {[%emt 0:02:35]} 42. Bf2 {[%emt 0:12:28]} Ke5 {[%emt 0:01:08]} 43. Rxb6 {[%emt 0:00:49]} Nxb6 {[%emt 0:00:05]} 44. Bxd4+ {[%emt 0:00:06]} Kf4 {[%emt 0:00:17]} 45. b3 {[%emt 0:00:31]} Kf3 {[%emt 0:07:01]} 46. Bc3 {[%emt 0:04:12]} Kf2 {[%emt 0:00:25]} 47. h3 {[%emt 0:00:04]} Nd5 {[%emt 0:00:14]} 48. Bxa5 {[%emt 0:00:14]} Rh6 {[%emt 0:00:07]} 0-1

[Event "ETCC Open 2023"]
[Site "Budva"]
[Date "2023.11.14"]
[Round "4.62"]
[White "Kazakouski, Valery"]
[Black "Bogner, Sebastian"]
[Result "1/2-1/2"]
[ECO "A11"]
[WhiteElo "2577"]
[BlackElo "2536"]
[Annotator "ChessBase"]
[PlyCount "121"]
[EventDate "2023.11.10"]
[EventType "team-tourn"]
[EventCountry "MNE"]
[SourceTitle "playchess.com"]
[Source "ChessBase"]
[SourceQuality "1"]
[WhiteTeam "Lithuania"]
[BlackTeam "Switzerland"]
[WhiteTeamCountry "LTU"]
[BlackTeamCountry "SUI"]
[TimeControl "40/5400+30:1800+30"]

1. Nf3 {[%emt 0:00:10]} d5 {[%emt 0:00:12]} 2. g3 {[%emt 0:00:40]} Bg4 {[%emt 0:01:50]} 3. Bg2 {[%emt 0:00:15]} e6 {[%emt 0:00:29]} 4. c4 {[%emt 0:02:11]} c6 {[%emt 0:00:09]} 5. Qb3 {[%emt 0:00:11]} Qb6 {[%emt 0:03:07]} 6. d3 {[%emt 0:01:10]} Nf6 {[%emt 0:07:16]} 7. Be3 {[%emt 0:02:13]} Qxb3 {[%emt 0:14:46]} 8. axb3 {[%emt 0:00:09]} Bxf3 {[%emt 0:00:13]} 9. Bxf3 {[%emt 0:00:08]} a6 {[%emt 0:03:49]} 10. Bd2 {[%emt 0:00:51]} Nbd7 {[%emt 0:00:16]} 11. Bc3 {[%emt 0:06:57]} Bd6 {[%emt 0:01:51]} 12. Nd2 {[%emt 0:01:02]} O-O {[%emt 0:03:23]} 13. O-O {[%emt 0:09:10]} Rfd8 {[%emt 0:05:39]} 14. b4 {[%emt 0:06:41]} Be5 {[%emt 0:02:01]} 15. d4 {[%emt 0:05:22]} Bc7 {[%emt 0:02:14]} 16. Bg2 {[%emt 0:05:32]} Rab8 {[%emt 0:16:54]} 17. Rfc1 {[%emt 0:02:31]} h6 {[%emt 0:05:18]} 18. Rc2 {[%emt 0:14:08]} Nb6 {[%emt 0:04:41]} 19. b3 {[%emt 0:08:15]} Nbd7 {[%emt 0:01:57]} 20. e3 {[%emt 0:02:42]} Bd6 {[%emt 0:01:27]} 21. Rd1 {[%emt 0:07:01]} Rbc8 {[%emt 0:00:46]} 22. Nb1 {[%emt 0:04:28]} Re8 {[%emt 0:03:09]} 23. Kf1 {[%emt 0:02:02]} Ng4 {[%emt 0:01:37]} 24. h3 {[%emt 0:00:42]} Ngf6 {[%emt 0:00:05]} 25. Be1 {[%emt 0:02:51]} Nf8 {[%emt 0:02:10]} 26. Rdc1 {[%emt 0:01:38]} Ng6 {[%emt 0:01:55]} 27. Bf3 {[%emt 0:02:13]} Ne7 {[%emt 0:01:27]} 28. Ra2 {[%emt 0:02:17]} Ne4 {[%emt 0:02:07]} 29. Nc3 {[%emt 0:02:20]} Nxc3 {[%emt 0:02:48]} 30. Bxc3 {[%emt 0:00:08]} Kf8 {[%emt 0:01:15]} 31. Bg2 {[%emt 0:03:35]} Ng8 {[%emt 0:00:33]} 32. Be1 {[%emt 0:00:38]} Nf6 {[%emt 0:00:31]} 33. Rd1 {[%emt 0:01:02]} Rcd8 {[%emt 0:00:17]} 34. Bf3 {[%emt 0:00:45]} Rc8 {[%emt 0:01:49]} 35. Be2 {[%emt 0:00:43]} Ne4 {[%emt 0:00:34]} 36. Kg2 {[%emt 0:01:05]} Kg8 {[%emt 0:02:33]} 37. Bd3 {[%emt 0:00:10]} Nf6 {[%emt 0:03:21]} 38. Rc2 {[%emt 0:00:38]} Rc7 {[%emt 0:01:48]} 39. Rdc1 {[%emt 0:02:53]} Rec8 {[%emt 0:00:37]} 40. f3 {[%emt 0:01:09]} Rd7 {[%emt 0:02:57]} 41. b5 {[%emt 0:06:44]} axb5 {[%emt 0:03:11]} 42. cxb5 {[%emt 0:00:21]} Ba3 {[%emt 0:00:01]} 43. Ra1 {[%emt 0:03:36]} Bf8 {[%emt 0:00:05]} 44. Kf1 {[%emt 0:02:21]} g6 {[%emt 0:01:18]} 45. Rac1 {[%emt 0:03:01]} Rb8 {[%emt 0:02:55]} 46. Ke2 {[%emt 0:04:53]} Kg7 {[%emt 0:02:14]} 47. Ra1 {[%emt 0:01:03]} Bd6 {[%emt 0:11:15]} 48. g4 {[%emt 0:00:53]} g5 {[%emt 0:04:49]} 49. bxc6 {[%emt 0:04:54]} bxc6 {[%emt 0:00:05]} 50. Rb1 {[%emt 0:00:04]} Rc7 {[%emt 0:01:28]} 51. Bd2 {[%emt 0:01:05]} Bb4 {[%emt 0:02:51]} 52. Bc1 {[%emt 0:00:56]} Nd7 {[%emt 0:01:14]} 53. e4 {[%emt 0:00:52]} Bd6 {[%emt 0:01:53]} 54. Bd2 {[%emt 0:00:40]} Bf4 {[%emt 0:01:04]} 55. Ba5 {[%emt 0:03:46]} Ra7 {[%emt 0:00:14]} 56. Be1 {[%emt 0:00:06]} Rb6 {[%emt 0:01:14]} 57. b4 {[%emt 0:00:07]} Bd6 {[%emt 0:00:59]} 58. b5 {[%emt 0:03:15]} cxb5 {[%emt 0:00:34]} 59. Rxb5 {[%emt 0:00:20]} Rxb5 {[%emt 0:00:35]} 60. Bxb5 {[%emt 0:00:05]} Nf8 {[%emt 0:00:42]} 61. Bc6 {[%emt 0:01:35]} 1/2-1/2

[Event "ETCC Open 2023"]
[Site "Budva"]
[Date "2023.11.14"]
[Round "4.63"]
[White "Kurmann, Oliver"]
[Black "Pultinevicius, Paulius"]
[Result "0-1"]
[ECO "B12"]
[WhiteElo "2436"]
[BlackElo "2589"]
[Annotator "TA"]
[PlyCount "62"]
[EventDate "2023.11.10"]
[EventType "team-tourn"]
[EventCountry "MNE"]
[SourceTitle "playchess.com"]
[Source "ChessBase"]
[SourceQuality "1"]
[WhiteTeam "Switzerland"]
[BlackTeam "Lithuania"]
[WhiteTeamCountry "SUI"]
[BlackTeamCountry "LTU"]
[TimeControl "40/5400+30:1800+30"]

{[%evp 9,62,0,6,6,8,13,13,14,11,11,9,12,18,10,14,16,12,13,16,8,29,0,76,2,0,-64,-54,-90,-89,-103,17,24,1,-250,-238,-386,-372,-375,-371,-390,-358,-397,-415,-458,-394,-379,-293,-495,-369,-611,-579,-692,-692,-1351,-1051]} 1. e4 {[%emt 0:00:03]} c6 {[%emt 0:00:03]} 2. d4 {[%emt 0:00:14]} d5 {[%emt 0:00:02]} 3. e5 {[%emt 0:00:10]} c5 {[%emt 0:00:04]} 4. Nf3 {[%emt 0:00:17]} cxd4 {[%emt 0:00:05]} 5. Qxd4 {[%emt 0:00:09]} Nc6 {[%emt 0:00:08]} 6. Qf4 {[%emt 0:00:08] B12: Caro-Kann: Advance Variation.} e6 {[%emt 0:01:01]} 7. Nc3 {[%emt 0:00:21]} ({Much weaker is} 7. Ng5 f6 8. Nf3 (8. exf6 $2 gxf6 9. Nxe6 Bxe6 $19) 8... fxe5 9. Nxe5 Qc7 10. Nxc6 (10. Bb5 $2 Bd6 $19) 10... Bd6 $15) 7... Nge7 {[%emt 0:25:13]} 8. Bd3 {[%emt 0:01:47] The position is equal.} Ng6 {[%emt 0:01:26]} 9. Qg3 {[%emt 0:00:02]} Nb4 {[%emt 0:00:33]} 10. h4 {[%emt 0:01:57]} Nxd3+ {[%emt 0:02:36]} 11. cxd3 {[%emt 0:00:05]} h5 {[%emt 0:01:03] [#]} 12. Bg5 $146 {[%emt 0:10:55]} ({Predecessor:} 12. O-O Be7 13. Bg5 Bd7 14. Ne2 Rc8 15. Nf4 Nxf4 16. Bxf4 g6 17. Rfc1 Rxc1+ 18. Rxc1 {1-0 Moussard,J (2667)-Narayanan,S (2559) ChessKid Cup Play In blitz 2023 (2)}) 12... Qb6 {[%emt 0:02:22]} 13. O-O {[%emt 0:00:38]} Bd7 {[%emt 0:08:00]} 14. Rfc1 {[%emt 0:22:11]} Bc5 {[%emt 0:10:23]} (14... Rc8 $5 {[%cal Rb6b2]}) 15. Ne2 {[%emt 0:23:49]} Rc8 {[%emt 0:06:08]} (15... Qxb2 $11 16. Nf4 (16. Rab1 Qxe2 17. Rxc5 b6 $17) 16... Nxf4 17. Bxf4 Bc6) 16. d4 {[%emt 0:05:49]} (16. Nf4 $16 {Nxg6 would be deadly.} Nxf4 17. Bxf4) 16... Qxb2 $11 {[%emt 0:02:08]} 17. Nc3 {[%emt 0:21:50]} (17. Nf4 $11 Nxf4 18. Bxf4) 17... Bb6 $15 {[%emt 0:24:23]} 18. Bd2 {[%emt 0:06:22] [#]} Rc4 $1 {[%emt 0:08:36] Black is much more active.} ({But not} 18... Bxd4 19. Rab1 Bxe5 20. Rxb2 $16) 19. a4 {[%emt 0:02:22]} Bxd4 {[%emt 0:04:03]} (19... O-O $17 {aiming for ...Rfc8.} 20. Ra2 Qb4) 20. Rab1 $11 {[%emt 0:00:28]} Qa3 {[%emt 0:00:08][%cal Rd4c3]} 21. Nb5 {[%emt 0:00:43][%mdl 8192] This move loses the game for White.} (21. Nxd4 $11 Rxd4 22. Qe3 (22. Rxb7 O-O $15)) 21... Bxb5 $19 {[%emt 0:00:31]} (21... Qxa4 $2 22. Nd6+ Kf8 23. Nxc4 dxc4 24. Nxd4 $18) 22. axb5 {[%emt 0:00:37]} (22. Rxc4 $142 Bxc4 23. Nxd4 Qxg3 24. fxg3) 22... Bc5 {[%emt 0:02:01]} 23. Rxc4 {[%emt 0:00:28]} dxc4 {[%emt 0:00:06]} 24. Rc1 {[%emt 0:00:31]} Qd3 {[%emt 0:00:32]} 25. Rc3 {[%emt 0:00:29]} Qd5 {[%emt 0:00:14]} 26. Kh2 {[%emt 0:00:33]} Bb4 {[%emt 0:01:02]} 27. Rc2 {[%emt 0:00:30]} Bxd2 {[%emt 0:00:37]} 28. Rxd2 {[%emt 0:00:19]} (28. Nxd2 {was forced.} b6 29. Nxc4) 28... Qc5 {[%emt 0:00:25]} 29. Rd6 $2 {[%emt 0:00:28]} (29. Ng5 O-O 30. f4 Qxb5 31. Qf3) 29... c3 {[%emt 0:00:22] [#] And now ...c2 would win. Black is clearly winning.} 30. Qg5 {[%emt 0:00:19][%csl Gg5][%cal Rd6d8]} O-O {[%emt 0:00:20] Threatens to win with ...c2.} (30... Qxf2 $2 31. Qd8#) 31. Qxh5 {[%emt 0:00:36]} Nf4 {[%emt 0:00:19] Weighted Error Value: White=0.76/Black=0.25 (precise)} 0-1

[Event "ETCC Open 2023"]
[Site "Budva"]
[Date "2023.11.14"]
[Round "4.64"]
[White "Klabis, Rokas"]
[Black "Baenziger, Fabian"]
[Result "1-0"]
[ECO "C45"]
[WhiteElo "2412"]
[BlackElo "2422"]
[Annotator "ChessBase"]
[PlyCount "67"]
[EventDate "2023.11.10"]
[EventType "team-tourn"]
[EventCountry "MNE"]
[SourceTitle "playchess.com"]
[Source "ChessBase"]
[SourceQuality "1"]
[WhiteTeam "Lithuania"]
[BlackTeam "Switzerland"]
[WhiteTeamCountry "LTU"]
[BlackTeamCountry "SUI"]
[TimeControl "40/5400+30:1800+30"]

1. e4 {[%emt 0:00:03]} e5 {[%emt 0:00:14]} 2. Nf3 {[%emt 0:00:05]} Nc6 {[%emt 0:00:15]} 3. d4 {[%emt 0:00:41]} exd4 {[%emt 0:00:14]} 4. Nxd4 {[%emt 0:00:05]} Qf6 {[%emt 0:00:33]} 5. Nxc6 {[%emt 0:03:04]} Bc5 {[%emt 0:01:09]} 6. Qf3 {[%emt 0:00:20]} bxc6 {[%emt 0:07:53]} 7. Nd2 {[%emt 0:00:16]} d6 {[%emt 0:06:57]} 8. Nb3 {[%emt 0:00:45]} Bb6 {[%emt 0:00:05]} 9. a4 {[%emt 0:00:10]} a5 {[%emt 0:00:15]} 10. Bd2 {[%emt 0:04:44]} Qxf3 {[%emt 0:04:37]} 11. gxf3 {[%emt 0:00:05]} Ne7 {[%emt 0:00:05]} 12. h4 {[%emt 0:02:01]} f5 {[%emt 0:09:33]} 13. h5 {[%emt 0:30:16]} fxe4 {[%emt 0:21:11]} 14. fxe4 {[%emt 0:00:06]} O-O {[%emt 0:00:05]} 15. Rh2 {[%emt 0:14:30]} Bg4 {[%emt 0:11:50]} 16. Be2 {[%emt 0:05:48]} Bxe2 {[%emt 0:02:36]} 17. Kxe2 {[%emt 0:00:04]} d5 {[%emt 0:03:41]} 18. Rg1 {[%emt 0:08:51]} Rf7 {[%emt 0:03:40]} 19. Rg4 {[%emt 0:06:20]} dxe4 {[%emt 0:09:16]} 20. Rxe4 {[%emt 0:00:31]} Nf5 {[%emt 0:02:34]} 21. Re5 {[%emt 0:02:31]} c5 {[%emt 0:10:02]} 22. Bc3 {[%emt 0:06:47]} c6 {[%emt 0:03:21]} 23. Rg2 {[%emt 0:02:38]} c4 {[%emt 0:00:34]} 24. Nd2 {[%emt 0:06:41]} Nd4+ {[%emt 0:00:35]} 25. Kf1 {[%emt 0:00:44]} Nxc2 {[%emt 0:01:00]} 26. Nxc4 {[%emt 0:00:04]} Bd4 {[%emt 0:00:12]} 27. Re2 {[%emt 0:02:22]} Bxc3 {[%emt 0:00:04]} 28. bxc3 {[%emt 0:00:12]} Rf4 {[%emt 0:00:33]} 29. Re7 {[%emt 0:00:14]} Rf7 {[%emt 0:01:23]} 30. Rxf7 {[%emt 0:00:53]} Kxf7 {[%emt 0:00:01]} 31. f3 {[%emt 0:00:08]} Na1 {[%emt 0:00:04]} 32. Rb2 {[%emt 0:00:33]} Rd8 {[%emt 0:00:42]} 33. Rb1 {[%emt 0:00:33]} Nc2 {[%emt 0:00:04]} 34. Rc1 {[%emt 0:00:06]} 1-0

[Event "ETCC Open 2023"]
[Site "Budva"]
[Date "2023.11.14"]
[Round "4.65"]
[White "Tomic, Aleksandar"]
[Black "Schitco, Ivan"]
[Result "0-1"]
[ECO "D00"]
[WhiteElo "2411"]
[BlackElo "2503"]
[Annotator "ChessBase"]
[PlyCount "50"]
[EventDate "2023.11.10"]
[EventType "team-tourn"]
[EventCountry "MNE"]
[SourceTitle "playchess.com"]
[Source "ChessBase"]
[SourceQuality "1"]
[WhiteTeam "Montenegro"]
[BlackTeam "Moldova"]
[WhiteTeamCountry "MNE"]
[BlackTeamCountry "MDA"]
[TimeControl "40/5400+30:1800+30"]

1. d4 {[%emt 0:07:12]} d5 {[%emt 0:00:09]} 2. Nf3 {[%emt 0:03:22]} Nf6 {[%emt 0:00:15]} 3. Bf4 {[%emt 0:03:52]} g6 {[%emt 0:01:38]} 4. e3 {[%emt 0:01:52]} Bg7 {[%emt 0:00:30]} 5. Nc3 {[%emt 0:04:16]} O-O {[%emt 0:11:58]} 6. h4 {[%emt 0:01:58]} h6 {[%emt 0:04:03]} 7. Ne5 {[%emt 0:08:22]} Nbd7 {[%emt 0:08:19]} 8. Nxd7 {[%emt 0:12:32]} Bxd7 {[%emt 0:01:51]} 9. Be5 {[%emt 0:00:58]} c6 {[%emt 0:03:50]} 10. Bd3 {[%emt 0:01:38]} Qb6 {[%emt 0:01:25]} 11. Na4 {[%emt 0:06:03]} Qa5+ {[%emt 0:01:48]} 12. c3 {[%emt 0:01:13]} Rae8 {[%emt 0:04:45]} 13. Nc5 {[%emt 0:10:36]} Bc8 {[%emt 0:01:08]} 14. Qe2 {[%emt 0:09:13]} Qd8 {[%emt 0:02:23]} 15. a4 {[%emt 0:05:12]} b6 {[%emt 0:02:13]} 16. Nb3 {[%emt 0:06:58]} Ng4 {[%emt 0:07:34]} 17. Bxg7 {[%emt 0:04:40]} Kxg7 {[%emt 0:00:02]} 18. h5 {[%emt 0:01:23]} e5 {[%emt 0:02:47]} 19. a5 {[%emt 0:01:23]} e4 {[%emt 0:05:08]} 20. Ba6 {[%emt 0:01:21]} Bd7 {[%emt 0:02:23]} 21. Kd2 {[%emt 0:02:37]} f5 {[%emt 0:02:22]} 22. hxg6 {[%emt 0:04:06]} f4 {[%emt 0:00:05]} 23. Raf1 {[%emt 0:00:38]} Qg5 {[%emt 0:00:47]} 24. Qe1 {[%emt 0:00:31]} Rf6 {[%emt 0:01:35]} 25. c4 {[%emt 0:00:32]} Ref8 {[%emt 0:34:02]} 0-1

[Event "ETCC Open 2023"]
[Site "Budva"]
[Date "2023.11.14"]
[Round "4.66"]
[White "Macovei, Andrei"]
[Black "Sukovic, Andrej"]
[Result "1-0"]
[ECO "C02"]
[WhiteElo "2446"]
[BlackElo "2382"]
[Annotator "ChessBase"]
[PlyCount "111"]
[EventDate "2023.11.10"]
[EventType "team-tourn"]
[EventCountry "MNE"]
[SourceTitle "playchess.com"]
[Source "ChessBase"]
[SourceQuality "1"]
[WhiteTeam "Moldova"]
[BlackTeam "Montenegro"]
[WhiteTeamCountry "MDA"]
[BlackTeamCountry "MNE"]
[TimeControl "40/5400+30:1800+30"]

1. e4 {[%emt 0:00:02]} e6 {[%emt 0:06:31]} 2. d4 {[%emt 0:00:04]} d5 {[%emt 0:00:10]} 3. e5 {[%emt 0:00:01]} c5 {[%emt 0:00:10]} 4. c3 {[%emt 0:00:01]} Nc6 {[%emt 0:00:09]} 5. Nf3 {[%emt 0:00:02]} Bd7 {[%emt 0:00:07]} 6. Be2 {[%emt 0:00:05]} Nge7 {[%emt 0:00:09]} 7. Na3 {[%emt 0:00:04]} cxd4 {[%emt 0:00:12]} 8. cxd4 {[%emt 0:00:01]} Nf5 {[%emt 0:00:09]} 9. Nc2 {[%emt 0:00:05]} Be7 {[%emt 0:00:07]} 10. O-O {[%emt 0:00:10]} O-O {[%emt 0:00:06]} 11. Bd3 {[%emt 0:04:33]} f6 {[%emt 0:00:25]} 12. Bf4 {[%emt 0:00:57]} fxe5 {[%emt 0:06:39]} 13. Nxe5 {[%emt 0:00:05]} Rc8 {[%emt 0:00:11]} 14. Qd2 {[%emt 0:03:50]} Be8 {[%emt 0:05:28]} 15. Nxc6 {[%emt 0:10:19]} Rxc6 {[%emt 0:00:23]} 16. Rfe1 {[%emt 0:15:41]} Bg6 {[%emt 0:13:44]} 17. Be5 {[%emt 0:27:12]} a6 {[%emt 0:20:54]} 18. Qe2 {[%emt 0:04:10]} Bh4 {[%emt 0:04:27]} 19. g3 {[%emt 0:03:33]} Bf6 {[%emt 0:00:29]} 20. Rad1 {[%emt 0:01:58]} Kh8 {[%emt 0:04:45]} 21. a3 {[%emt 0:02:20]} Bxe5 {[%emt 0:04:47]} 22. dxe5 {[%emt 0:06:30]} Qb6 {[%emt 0:02:58]} 23. Bxf5 {[%emt 0:02:11]} Rxf5 {[%emt 0:02:15]} 24. Rd2 {[%emt 0:04:32]} Rc4 {[%emt 0:02:21]} 25. Qe3 {[%emt 0:00:54]} Qxe3 {[%emt 0:03:18]} 26. Rxe3 {[%emt 0:00:07]} Rf8 {[%emt 0:00:29]} 27. Nd4 {[%emt 0:00:23]} Re8 {[%emt 0:01:33]} 28. Rd1 {[%emt 0:09:24]} Kg8 {[%emt 0:00:28]} 29. Rc3 {[%emt 0:00:08]} Rxc3 {[%emt 0:01:39]} 30. bxc3 {[%emt 0:00:01]} Kf7 {[%emt 0:00:11]} 31. Kf1 {[%emt 0:00:33]} Rc8 {[%emt 0:04:54]} 32. Rc1 {[%emt 0:00:02]} Bd3+ {[%emt 0:00:16]} 33. Ke1 {[%emt 0:00:01]} g5 {[%emt 0:00:14]} 34. Kd2 {[%emt 0:00:22]} Bg6 {[%emt 0:00:50]} 35. f3 {[%emt 0:04:29]} Rc4 {[%emt 0:02:47]} 36. Ra1 {[%emt 0:01:16]} b5 {[%emt 0:03:54]} 37. Ra2 {[%emt 0:00:26]} Ke7 {[%emt 0:01:03]} 38. Rb2 {[%emt 0:00:26]} Ra4 {[%emt 0:02:55]} 39. Rb3 {[%emt 0:00:07]} h5 {[%emt 0:01:22]} 40. h4 {[%emt 0:02:09]} gxh4 {[%emt 0:01:04]} 41. gxh4 {[%emt 0:30:01]} Be8 {[%emt 0:35:13]} 42. Kc2 {[%emt 0:01:22]} Rc4 {[%emt 0:00:00]} 43. Rb4 {[%emt 0:00:00]} Rc8 {[%emt 0:00:00]} 44. Ne2 {[%emt 0:00:00]} Bg6+ {[%emt 0:00:00]} 45. Kd2 {[%emt 0:00:00]} Rf8 {[%emt 0:00:00]} 46. Rf4 {[%emt 0:00:00]} Rg8 {[%emt 0:00:00]} 47. Ke3 {[%emt 0:00:00]} Bf5 {[%emt 0:00:00]} 48. a4 {[%emt 0:00:00]} Bh3 {[%emt 0:00:00]} 49. axb5 {[%emt 0:00:00]} axb5 {[%emt 0:00:00]} 50. Rb4 {[%emt 0:00:00]} Rb8 {[%emt 0:00:00]} 51. Nd4 {[%emt 0:00:00]} Rc8 {[%emt 0:00:00]} 52. Kd2 {[%emt 0:00:00]} Bf1 {[%emt 0:00:00]} 53. Rb1 {[%emt 0:00:00]} Bc4 {[%emt 0:00:00]} 54. Ra1 {[%emt 0:00:00]} Kf7 {[%emt 0:00:44]} 55. Ra7+ {[%emt 0:00:00]} Kg6 {[%emt 0:00:01]} 56. Re7 {[%emt 0:00:00]} 1-0